fUST/lending_fUST_20240917
["ID","MTS","AMOUNT","RATE_DAILY","PERIOD"]
[338338584,1726513842067,-199.224342,0.0002,2]
[338338585,1726513842076,-236.794394,0.0002,2]
[338338586,1726513842086,-199.224342,0.0002,2]
[338338587,1726513842096,-236.794394,0.0002,2]
[338338588,1726513842105,-199.224342,0.0002,2]
[338338589,1726513842115,-236.794394,0.0002,2]
[338338590,1726513842125,-199.224342,0.0002,2]
[338338591,1726513842136,-224.383354,0.0002,2]
[338338592,1726513842147,-516.194862,0.0002,2]
[338338593,1726513842159,-516.194862,0.0002,2]
[338338594,1726513842168,-516.194862,0.0002,2]
[338338595,1726513842177,-516.194862,0.0002,2]
[338338596,1726513842186,-516.194862,0.0002,2]
[338338597,1726513842196,-516.194862,0.0002,2]
[338338598,1726513842205,-151.0,0.0002,2]
[338338599,1726513842214,-151.0,0.0002,2]
[338338600,1726513842223,-151.0,0.0002,2]
[338338601,1726513842234,-151.0,0.0002,2]
[338338602,1726513842242,-151.0,0.0002,2]
[338338603,1726513842251,-151.0,0.0002,2]
[338338604,1726513842261,-156.710847,0.0002,2]
[338338605,1726513842270,-151.0,0.0002,2]
[338338606,1726513842279,-1830.1842,0.0002,2]
[338338607,1726513842289,-1830.1842,0.0002,2]
[338338608,1726513842430,-1830.1842,0.0002,2]
[338338609,1726513842439,-1830.1842,0.0002,2]
[338338611,1726513842449,-1830.1842,0.0002,2]
[338338612,1726513842459,-1830.1842,0.0002,2]
[338338613,1726513842468,-1830.1842,0.0002,2]
[338338614,1726513842477,-1830.1842,0.0002,2]
[338338615,1726513842486,-151.0,0.0002,2]
[338338616,1726513842496,-151.0,0.0002,2]
[338338617,1726513842505,-151.0,0.0002,2]
[338338618,1726513842514,-489.207013,0.0002,2]
[338338619,1726513842524,-489.207013,0.0002,2]
[338338620,1726513842533,-489.207013,0.0002,2]
[338338621,1726513842542,-489.207013,0.0002,2]
[338338622,1726513842551,-489.207013,0.0002,2]
[338338623,1726513842561,-489.207013,0.0002,2]
[338338624,1726513842571,-489.207013,0.0002,2]
[338338625,1726513842580,-489.207013,0.0002,2]
[338338626,1726513842590,-151.0,0.0002,2]
[338338627,1726513842600,-1250.597609,0.0002,2]
[338338628,1726513842609,-151.0,0.0002,2]
[338338629,1726513842618,-151.0,0.0002,2]
[338338630,1726513842627,-1250.597609,0.0002,2]
[338338631,1726513842637,-151.0,0.0002,2]
[338338632,1726513842647,-151.0,0.0002,2]
[338338633,1726513842656,-151.0,0.0002,2]
[338338634,1726513842666,-296.819053,0.0002,2]
[338338635,1726513842675,-151.0,0.0002,2]
[338338636,1726513842684,-151.0,0.0002,2]
[338338637,1726513842693,-151.0,0.0002,2]
[338338639,1726513842703,-151.0,0.0002,2]
[338338641,1726513842712,-151.0,0.0002,2]
[338338642,1726513842724,-151.0,0.0002,2]
[338338644,1726513842734,-151.0,0.0002,2]
[338338646,1726513842744,-151.0,0.0002,2]
[338338649,1726513842753,-151.0,0.0002,2]
[338338651,1726513842763,-151.0,0.0002,2]
[338338652,1726513842773,-151.0,0.0002,2]
[338338654,1726513842783,-151.0,0.0002,2]
[338338655,1726513842792,-151.0,0.0002,2]
[338338656,1726513842803,-151.0,0.0002,2]
[338338657,1726513842812,-151.0,0.0002,2]
[338338658,1726513842823,-151.0,0.0002,2]
[338338659,1726513842832,-151.0,0.0002,2]
[338338661,1726513842842,-151.0,0.0002,2]
[338338662,1726513842852,-151.0,0.0002,2]
[338338663,1726513842861,-281.345953,0.0002,2]
[338338664,1726513842871,-151.0,0.0002,2]
[338338665,1726513842880,-151.0,0.0002,2]
[338338667,1726513842889,-151.0,0.0002,2]
[338338668,1726513842899,-300.12116,0.0002,2]
[338338669,1726513842908,-380.889873,0.0002,2]
[338338670,1726513842917,-380.889873,0.0002,2]
[338338671,1726513842927,-380.889873,0.0002,2]
[338338672,1726513842936,-380.889873,0.0002,2]
[338338673,1726513842945,-1513.96,0.0002,2]
[338338674,1726513842955,-380.889873,0.0002,2]
[338338675,1726513842964,-380.889873,0.0002,2]
[338338676,1726513842974,-380.889873,0.0002,2]
[338338677,1726513842983,-380.889873,0.0002,2]
[338338678,1726513842993,-151.651291,0.0002,2]
[338338679,1726513843003,-244.047495,0.0002,2]
[338338680,1726513843014,-244.047495,0.0002,2]
[338338681,1726513843023,-244.047495,0.0002,2]
[338338682,1726513843034,-244.047495,0.0002,2]
[338338683,1726513843046,-244.047495,0.0002,2]
[338338684,1726513843057,-244.047495,0.0002,2]
[338338685,1726513843067,-494.329509,0.0002,2]
[338338686,1726513843078,-244.047495,0.0002,2]
[338338687,1726513843089,-494.329509,0.0002,2]
[338338688,1726513843101,-494.329509,0.0002,2]
[338338689,1726513843113,-244.047495,0.0002,2]
[338338690,1726513843123,-494.329509,0.0002,2]
[338338691,1726513843133,-494.329509,0.0002,2]
[338338692,1726513843143,-494.329509,0.0002,2]
[338338693,1726513843153,-494.329509,0.0002,2]
[338338694,1726513843163,-494.329509,0.0002,2]
[338338695,1726513843173,-356.172615,0.0002,2]
[338338696,1726513843182,-356.172615,0.0002,2]
[338338697,1726513843192,-356.172615,0.0002,2]
[338338698,1726513843201,-356.172615,0.0002,2]
[338338699,1726513843210,-356.172615,0.0002,2]
[338338700,1726513843220,-356.172615,0.0002,2]
[338338701,1726513843229,-356.172615,0.0002,2]
[338338702,1726513843239,-356.172615,0.0002,2]
[338338703,1726513843248,-267.081479,0.0002,2]
[338338704,1726513843259,-267.081479,0.0002,2]
[338338705,1726513843268,-267.081479,0.0002,2]
[338338706,1726513843278,-267.081479,0.0002,2]
[338338707,1726513843288,-267.081479,0.0002,2]
[338338708,1726513843298,-267.081479,0.0002,2]
[338338709,1726513843309,-165.02007,0.0002,2]
[338338710,1726513843320,-267.081479,0.0002,2]
[338338711,1726513843330,-165.02007,0.0002,2]
[338338712,1726513843340,-1202.650425,0.0002,2]
[338338713,1726513843349,-267.081479,0.0002,2]
[338338714,1726513843358,-165.02007,0.0002,2]
[338338715,1726513843368,-1202.650425,0.0002,2]
[338338716,1726513843377,-165.02007,0.0002,2]
[338338717,1726513843386,-1202.650425,0.0002,2]
[338338718,1726513843395,-1202.650425,0.0002,2]
[338338719,1726513843405,-165.02007,0.0002,2]
[338338720,1726513843414,-1000.0,0.0002,2]
[338338721,1726513843423,-165.02007,0.0002,2]
[338338722,1726513843432,-1000.0,0.0002,2]
[338338723,1726513843441,-165.02007,0.0002,2]
[338338724,1726513843450,-1000.0,0.0002,2]
[338338725,1726513843460,-165.02007,0.0002,2]
[338338726,1726513843469,-151.0,0.0002,2]
[338338727,1726513843478,-151.0,0.0002,2]
[338338728,1726513843488,-151.0,0.0002,2]
[338338729,1726513843497,-151.0,0.0002,2]
[338338730,1726513843506,-248.126713,0.0002,2]
[338338731,1726513843515,-248.126713,0.0002,2]
[338338732,1726513843524,-248.126713,0.0002,2]
[338338733,1726513843534,-248.126713,0.0002,2]
[338338734,1726513843544,-248.126713,0.0002,2]
[338338735,1726513843555,-248.126713,0.0002,2]
[338338736,1726513843566,-248.126713,0.0002,2]
[338338737,1726513843577,-248.126713,0.0002,2]
[338338738,1726513843588,-151.0,0.0002,2]
[338338739,1726513843598,-151.0,0.0002,2]
[338338740,1726513843608,-151.0,0.0002,2]
[338338741,1726513843619,-151.0,0.0002,2]
[338338742,1726513843628,-151.0,0.0002,2]
[338338743,1726513843638,-242.236725,0.0002,2]
[338338744,1726513843649,-238.143089,0.0002,2]
[338338745,1726513843659,-238.143089,0.0002,2]
[338338746,1726513843669,-238.143089,0.0002,2]
[338338747,1726513843678,-238.143089,0.0002,2]
[338338748,1726513843688,-238.143089,0.0002,2]
[338338749,1726513843697,-238.143089,0.0002,2]
[338338750,1726513843707,-238.143089,0.0002,2]
[338338751,1726513843716,-238.143089,0.0002,2]
[338338752,1726513843727,-151.0,0.0002,2]
[338338753,1726513843736,-203.376145,0.0002,2]
[338338754,1726513843746,-151.0,0.0002,2]
[338338755,1726513843755,-151.0,0.0002,2]
[338338756,1726513843766,-231.559033,0.0002,2]
[338338757,1726513843776,-151.0,0.0002,2]
[338338758,1726513843785,-153.114606,0.0002,2]
[338338759,1726513843795,-151.0,0.0002,2]
[338338760,1726513843805,-151.0,0.0002,2]
[338338761,1726513843814,-151.0,0.0002,2]
[338338762,1726513843823,-151.0,0.0002,2]
[338338763,1726513843832,-441.611078,0.0002,2]
[338338764,1726513843842,-441.611078,0.0002,2]
[338338765,1726513843852,-441.611078,0.0002,2]
[338338766,1726513843862,-441.611078,0.0002,2]
[338338767,1726513843871,-441.611078,0.0002,2]
[338338768,1726513843880,-441.611078,0.0002,2]
[338338769,1726513843890,-441.611078,0.0002,2]
[338338770,1726513843899,-441.611078,0.0002,2]
[338338771,1726513843908,-151.0,0.0002,2]
[338338772,1726513843918,-151.0,0.0002,2]
[338338773,1726513843927,-151.0,0.0002,2]
[338338774,1726513843937,-151.0,0.0002,2]
[338338775,1726513843946,-151.0,0.0002,2]
[338338776,1726513843955,-151.0,0.0002,2]
[338338777,1726513843966,-256.778803,0.0002,2]
[338338778,1726513843976,-1440.573013,0.0002,2]
[338338780,1726513843987,-1440.573013,0.0002,2]
[338338782,1726513843998,-1440.573013,0.0002,2]
[338338784,1726513844009,-1440.573013,0.0002,2]
[338338786,1726513844021,-1440.573013,0.0002,2]
[338338789,1726513844032,-1440.573013,0.0002,2]
[338338791,1726513844043,-1440.573013,0.0002,2]
[338338793,1726513844053,-1440.573013,0.0002,2]
[338338795,1726513844064,-151.16746634,0.0002,2]
[338338797,1726513844073,-2250.83957,0.0002,2]
[338338798,1726513844083,-2250.83957,0.0002,2]
[338338799,1726513844093,-2250.83957,0.0002,2]
[338338800,1726513844104,-2250.83957,0.0002,2]
[338338801,1726513844114,-151.0,0.0002,2]
[338338802,1726513844125,-151.0,0.0002,2]
[338338803,1726513844135,-151.0,0.0002,2]
[338338804,1726513844146,-195.787032,0.0002,2]
[338338805,1726513844156,-2250.83957,0.0002,2]
[338338806,1726513844166,-2250.83957,0.0002,2]
[338338807,1726513844175,-2250.83957,0.0002,2]
[338338808,1726513844184,-2250.83957,0.0002,2]
[338338809,1726513844194,-2853.972689,0.0002,2]
[338338810,1726513844203,-2853.972689,0.0002,2]
[338338811,1726513844212,-2853.972689,0.0002,2]
[338338812,1726513844221,-2853.972689,0.0002,2]
[338338813,1726513844231,-2853.972689,0.0002,2]
[338338814,1726513844240,-2853.972689,0.0002,2]
[338338815,1726513844249,-2853.972689,0.0002,2]
[338338816,1726513844258,-2853.972689,0.0002,2]
[338338817,1726513844268,-151.0,0.0002,2]
[338338818,1726513844279,-151.0,0.0002,2]
[338338819,1726513844409,-151.0,0.0002,2]
[338338820,1726513844419,-151.0,0.0002,2]
[338338821,1726513844428,-151.0,0.0002,2]
[338338822,1726513844438,-222.34261,0.0002,2]
[338338823,1726513844448,-216.974396,0.0002,2]
[338338824,1726513844457,-216.974396,0.0002,2]
[338338825,1726513844466,-216.974396,0.0002,2]
[338338826,1726513844475,-216.974396,0.0002,2]
[338338827,1726513844484,-47938.13434531,0.0002,2]
[338338828,1726513844493,-216.974396,0.0002,2]
[338338829,1726513844503,-216.974396,0.0002,2]
[338338830,1726513844512,-216.974396,0.0002,2]
[338338831,1726513844521,-216.974396,0.0002,2]
[338338832,1726513844531,-150.0,0.0002,2]
[338338833,1726513844540,-788.841026,0.0002,2]
[338338834,1726513844549,-788.841026,0.0002,2]
[338338835,1726513844559,-788.841026,0.0002,2]
[338338836,1726513844570,-788.841026,0.0002,2]
[338338837,1726513844582,-158.032833,0.0002,2]
[338338838,1726513844593,-158.032833,0.0002,2]
[338338839,1726513844604,-158.032833,0.0002,2]
[338338840,1726513844615,-158.032833,0.0002,2]
[338338841,1726513844625,-158.032833,0.0002,2]
[338338842,1726513844636,-788.841026,0.0002,2]
[338338843,1726513844645,-788.841026,0.0002,2]
[338338844,1726513844655,-788.841026,0.0002,2]
[338338845,1726513844665,-788.841026,0.0002,2]
[338338846,1726513844675,-158.032833,0.0002,2]
[338338847,1726513844684,-158.032833,0.0002,2]
[338338848,1726513844694,-158.032833,0.0002,2]
[338338849,1726513844706,-158.032833,0.0002,2]
[338338850,1726513844716,-158.032833,0.0002,2]
[338338851,1726513844728,-2809.131022,0.0002,2]
[338338852,1726513844738,-2809.131022,0.0002,2]
[338338853,1726513844747,-2809.131022,0.0002,2]
[338338854,1726513844757,-151.0,0.0002,2]
[338338855,1726513844768,-2809.131022,0.0002,2]
[338338856,1726513844778,-151.0,0.0002,2]
[338338857,1726513844788,-2809.131022,0.0002,2]
[338338858,1726513844797,-151.0,0.0002,2]
[338338859,1726513844808,-248.809898,0.0002,2]
[338338860,1726513844818,-2809.131022,0.0002,2]
[338338861,1726513844828,-2809.131022,0.0002,2]
[338338862,1726513844838,-2809.131022,0.0002,2]
[338338863,1726513844848,-2809.131022,0.0002,2]
[338338864,1726513844858,-2809.131022,0.0002,2]
[338338865,1726513844867,-1126.290609,0.0002,2]
[338338866,1726513844877,-1126.290609,0.0002,2]
[338338867,1726513844886,-1126.290609,0.0002,2]
[338338868,1726513844895,-1126.290609,0.0002,2]
[338338869,1726513844905,-1126.290609,0.0002,2]
[338338870,1726513844915,-1126.290609,0.0002,2]
[338338871,1726513844924,-1126.290609,0.0002,2]
[338338872,1726513844934,-1126.290609,0.0002,2]
[338338873,1726513844943,-1126.290609,0.0002,2]
[338338874,1726513844953,-1126.290609,0.0002,2]
[338338875,1726513844963,-1239.608602,0.0002,2]
[338338876,1726513844972,-1239.608602,0.0002,2]
[338338877,1726513844982,-1239.608602,0.0002,2]
[338338878,1726513844991,-1239.608602,0.0002,2]
[338338879,1726513845000,-1239.608602,0.0002,2]
[338338880,1726513845010,-1239.608602,0.0002,2]
[338338881,1726513845019,-1239.608602,0.0002,2]
[338338882,1726513845029,-1239.608602,0.0002,2]
[338338883,1726513845040,-1239.608602,0.0002,2]
[338338884,1726513845050,-1239.608602,0.0002,2]
[338338885,1726513845060,-570.866519,0.0002,2]
[338338886,1726513845070,-570.866519,0.0002,2]
[338338887,1726513845079,-570.866519,0.0002,2]
[338338888,1726513845088,-570.866519,0.0002,2]
[338338889,1726513845097,-570.866519,0.0002,2]
[338338890,1726513845107,-2133.529178,0.0002,2]
[338338891,1726513845116,-2133.529178,0.0002,2]
[338338892,1726513845125,-2133.529178,0.0002,2]
[338338893,1726513845134,-2133.529178,0.0002,2]
[338338894,1726513845144,-570.866519,0.0002,2]
[338338895,1726513845153,-2133.529178,0.0002,2]
[338338896,1726513845163,-570.866519,0.0002,2]
[338338897,1726513845173,-570.866519,0.0002,2]
[338338898,1726513845182,-570.866519,0.0002,2]
[338338899,1726513845191,-570.866519,0.0002,2]
[338338900,1726513845200,-2133.529178,0.0002,2]
[338338901,1726513845210,-2133.529178,0.0002,2]
[338338902,1726513845219,-2133.529178,0.0002,2]
[338338903,1726513845228,-2133.529178,0.0002,2]
[338338904,1726513845239,-2133.529178,0.0002,2]
[338338905,1726513845248,-6140.560834,0.0002,2]
[338338906,1726513845264,-6140.560834,0.0002,2]
[338338907,1726513845286,-6140.560834,0.0002,2]
[338338908,1726513845303,-6140.560834,0.0002,2]
[338338909,1726513845323,-6140.560834,0.0002,2]
[338338910,1726513845344,-6140.560834,0.0002,2]
[338338911,1726513845362,-6140.560834,0.0002,2]
[338338912,1726513845382,-6140.560834,0.0002,2]
[338338913,1726513845397,-6140.560834,0.0002,2]
[338338914,1726513845414,-6140.560834,0.0002,2]
[338338915,1726513845438,-213.097288,0.0002,2]
[338338916,1726513845453,-213.097288,0.0002,2]
[338338917,1726513845468,-213.097288,0.0002,2]
[338338918,1726513845484,-213.097288,0.0002,2]
[338338919,1726513845501,-213.097288,0.0002,2]
[338338920,1726513845516,-213.097288,0.0002,2]
[338338921,1726513845531,-213.097288,0.0002,2]
[338338922,1726513845546,-213.097288,0.0002,2]
[338338923,1726513845561,-213.097288,0.0002,2]
[338338924,1726513845577,-213.097288,0.0002,2]
[338338925,1726513845591,-3411.88513,0.0002,2]
[338338926,1726513845609,-3411.88513,0.0002,2]
[338338927,1726513845624,-3411.88513,0.0002,2]
[338338928,1726513845639,-3411.88513,0.0002,2]
[338338929,1726513845654,-536.86448914,0.0002,2]
[338338930,1726513845683,-2875.02064086,0.0002,2]
[338338931,1726513845698,-1000.0,0.0002,2]
[338338932,1726513845714,-793.42121125,0.0002,2]
[338338933,1726513845735,-670.24779425,0.0002,2]
[338338938,1726513846137,-90.1279846,0.0002,2]
[338338939,1726513846172,-1858.0881399,0.0002,2]
[338338940,1726513846187,-3411.88513,0.0002,2]
[338338941,1726513846202,-3411.88513,0.0002,2]
[338338942,1726513846217,-3411.88513,0.0002,2]
[338338943,1726513846232,-3411.88513,0.0002,2]
[338338944,1726513846248,-150.0,0.0002,2]
[338338945,1726513846264,-1649.690547,0.0002,2]
[338338946,1726513846281,-1649.690547,0.0002,2]
[338338947,1726513846295,-1649.690547,0.0002,2]
[338338948,1726513846310,-1649.690547,0.0002,2]
[338338949,1726513846326,-1649.690547,0.0002,2]
[338338950,1726513846341,-1649.690547,0.0002,2]
[338338951,1726513846357,-1649.690547,0.0002,2]
[338338952,1726513846372,-1649.690547,0.0002,2]
[338338953,1726513846386,-1649.690547,0.0002,2]
[338338954,1726513846401,-1649.690547,0.0002,2]
[338338955,1726513846416,-1000.0,0.00020006,2]
[338338956,1726513846432,-1052.25284234,0.0002001,2]
[338338957,1726513846446,-1000.0,0.00020023,2]
[338338958,1726513846462,-150.0,0.00020027,2]
[338338959,1726513846477,-150.0,0.00020055,2]
[338338960,1726513846491,-200.24786183,0.00020082,2]
[338338961,1726513846506,-301.796278,0.000201,2]
[338338962,1726513846520,-386.965838,0.000201,2]
[338338963,1726513846531,-168.298751,0.000201,2]
[338338964,1726513846541,-829.598585,0.000201,2]
[338338965,1726513846550,-3424.945616,0.000201,2]
[338338966,1726513846560,-168.29875,0.000201,2]
[338338967,1726513846571,-1000.0,0.00020166,2]
[338338968,1726513846581,-897.39,0.00020173,2]
[338338969,1726513846590,-450.3,0.00020174,2]
[338338970,1726513846599,-210.769618,0.00020187,2]
[338338971,1726513846609,-2651.56382264,0.00020256,2]
[338338972,1726513846619,-151.0,0.00020256,2]
[338338973,1726513846628,-151.0,0.00020256,2]
[338338974,1726513846928,-500.0,0.00020256,2]
[338338975,1726513846959,-500.0,0.00020256,2]
[338338976,1726513846969,-2411.91857631,0.00020277,2]
[338338977,1726513846978,-300.43239887,0.00020289,2]
[338338978,1726513846989,-184.0,0.000203,2]
[338338979,1726513846999,-300.0,0.000203,8]
[338338980,1726513847010,-500.0,0.000203,2]
[338338981,1726513847020,-301.796278,0.00020351,2]
[338338982,1726513847030,-386.965838,0.00020351,2]
[338338983,1726513847039,-829.598585,0.00020351,2]
[338338984,1726513847048,-3424.945616,0.00020351,2]
[338338985,1726513847057,-113.06144303,0.00020351,2]
[338338986,1726513847306,-336.75963,0.0001999,2]
[338338987,1726513847316,-336.75963,0.0002,2]
[338338988,1726513847325,-336.75963,0.0002,2]
[338338989,1726513847334,-336.75963,0.0002,2]
[338338990,1726513847343,-37.93855697,0.00020351,2]
[338338991,1726513847352,-1250.597609,0.00020351,2]
[338338992,1726513847361,-151.0,0.00020351,2]
[338338993,1726513847370,-151.0,0.00020351,2]
[338338994,1726513847380,-2250.83957,0.00020351,2]
[338338995,1726513847389,-2250.83957,0.00020351,2]
[338338996,1726513847398,-151.0,0.00020351,2]
[338338997,1726513847407,-216.974396,0.00020351,2]
[338338998,1726513847416,-216.974396,0.00020351,2]
[338338999,1726513847426,-788.841026,0.00020351,2]
[338339000,1726513847435,-788.841026,0.00020351,2]
[338339001,1726513847444,-23313.27885447,0.00020377,2]
[338339002,1726513847809,-334.0510005,0.00019178,2]
[338339003,1726513847822,-2.7086295,0.00019178,2]
[338339004,1726513847832,-336.75963,0.00019973,2]
[338339005,1726513847842,-336.75963,0.0002,2]
[338339006,1726513847852,-336.75963,0.0002,2]
[338339007,1726513847862,-64992.49265713,0.00020377,2]
[338339008,1726513848091,-336.75963,0.0001999,2]
[338339009,1726513848102,-6844.47037,0.00020377,2]
[338339010,1726513848516,-336.75963,0.0002,2]
[338339011,1726513848529,-45.16855453,0.0002,2]
[338339012,1726513855940,213.048741,0.00013699,2]
[338339021,1726514413182,215.856304,0.00013699,2]
[338339023,1726514701144,-300.0,0.00017561,2]
[338339024,1726514701167,-300.0,0.00017561,2]
[338339025,1726514701189,-24900.0,0.00017562,2]
[338339029,1726514726091,5000.0,0.00015,2]
[338339035,1726514795135,-273.38742923,0.00015,2]
[338339036,1726514845108,-1067.32995503,0.00015,2]
[338339037,1726514848119,-664.2551331,0.00015,2]
[338339073,1726514916965,5759.3797818,0.00014,4]
[338339074,1726514920445,8942.76653425,0.00014,2]
[338339075,1726514929490,5000.0,0.0001402,2]
[338339076,1726514944695,5000.0,0.0001402,2]
[338339077,1726514961131,937.25844789,0.0001402,2]
[338339078,1726514961154,569.84292169,0.0001402,2]
[338339079,1726514961174,961.10887247,0.0001402,2]
[338339080,1726514961198,2531.78975795,0.0001402,2]
[338339081,1726514976775,837.14001514,0.0001402,2]
[338339082,1726514976797,4162.85998486,0.0001402,2]
[338339083,1726514992466,1675.7457973,0.0001402,2]
[338339084,1726515003204,1011.45814384,0.00011991,2]
[338339085,1726515003227,8988.54185616,0.00011991,2]
[338339086,1726515005350,218.651491,0.00013699,2]
[338339122,1726515032211,-170.945712,0.00017917,2]
[338339124,1726515032222,-650.21961667,0.00018355,2]
[338339126,1726515032233,-206.85933239,0.00018355,2]
[338339128,1726515032242,-170.945712,0.00018384,2]
[338339129,1726515032253,-4240.66907555,0.00018795,2]
[338339131,1726515032264,-3000.0,0.000188,2]
[338339133,1726515032273,-3000.0,0.0001881,2]
[338339134,1726515032282,-300.0,0.00018819,2]
[338339136,1726515032291,-300.0,0.00018819,2]
[338339138,1726515032300,-3000.0,0.0001882,2]
[338339140,1726515032309,-1310.14925459,0.0001883,2]
[338339143,1726515032335,-1689.85074541,0.0001883,2]
[338339145,1726515032344,-783.65516243,0.0001884,2]
[338339167,1726515038305,-504.31046157,0.0001884,2]
[338339168,1726515038318,-642.29571818,0.0001884,2]
[338339174,1726515038953,-1069.73865782,0.0001884,2]
[338339175,1726515038963,-3000.0,0.0001885,2]
[338339176,1726515038973,-170.945712,0.0001885,2]
[338339177,1726515038983,-2442.25014981,0.0001886,2]
[338339178,1726515039034,-557.74985019,0.0001886,2]
[338339179,1726515039044,-3000.0,0.0001887,2]
[338339180,1726515039054,-162.17885149,0.0001887,2]
[338339181,1726515039065,-3000.0,0.0001888,2]
[338339182,1726515039075,-3000.0,0.0001889,2]
[338339183,1726515039084,-162.17885148,0.00018895,2]
[338339184,1726515039094,-35947.459,0.00018899,2]
[338339185,1726515039104,-3000.0,0.000189,2]
[338339186,1726515039116,-3000.0,0.0001891,2]
[338339187,1726515039126,-3000.0,0.0001892,2]
[338339188,1726515039135,-1485.83689665,0.0001892,2]
[338339189,1726515039145,-162.17885148,0.0001892,2]
[338339190,1726515039155,-3000.0,0.0001893,2]
[338339191,1726515039165,-3000.0,0.0001894,2]
[338339192,1726515039175,-3000.0,0.0001895,2]
[338339193,1726515039185,-3000.0,0.0001896,2]
[338339194,1726515039196,-3000.0,0.0001897,2]
[338339195,1726515039207,-3000.0,0.0001898,2]
[338339196,1726515039218,-241.59984539,0.00018989,2]
[338339197,1726515039228,-500.0,0.00018989,2]
[338339198,1726515039242,-250.0,0.00018989,2]
[338339199,1726515039252,-500.0,0.00018989,2]
[338339200,1726515039262,-500.0,0.00018989,2]
[338339201,1726515039273,-500.0,0.00018989,2]
[338339202,1726515039282,-500.0,0.00018989,2]
[338339203,1726515039291,-500.0,0.00018989,2]
[338339204,1726515039305,-500.0,0.00018989,2]
[338339205,1726515039314,-500.0,0.00018989,2]
[338339206,1726515039324,-500.0,0.00018989,2]
[338339207,1726515039334,-500.0,0.00018989,2]
[338339208,1726515039343,-500.0,0.00018989,2]
[338339209,1726515039353,-500.0,0.00018989,2]
[338339210,1726515039363,-500.0,0.00018989,2]
[338339211,1726515039373,-478.92270906,0.00018989,2]
[338339212,1726515039382,-500.0,0.00018989,2]
[338339213,1726515039392,-500.0,0.00018989,2]
[338339214,1726515039401,-500.0,0.00018989,2]
[338339215,1726515039411,-500.0,0.00018989,2]
[338339216,1726515039420,-500.0,0.00018989,2]
[338339217,1726515039429,-500.0,0.00018989,2]
[338339218,1726515039439,-3000.0,0.0001899,2]
[338339219,1726515039448,-76518.4761719,0.0001899,3]
[338339220,1726515039458,-1940.98462855,0.0001899,3]
[338339221,1726515039467,-751.558477,0.00018996,2]
[338339222,1726515039477,-751.558477,0.00018996,2]
[338339223,1726515039489,-3000.0,0.00019,2]
[338339224,1726515039498,-12904.33478768,0.00019,2]
[338339225,1726515039509,-271.01454298,0.00019,7]
[338339226,1726515039518,-3000.0,0.0001901,2]
[338339227,1726515039528,-6609.74874633,0.00019017,2]
[338339228,1726515039538,-3000.0,0.0001902,2]
[338339229,1726515039548,-76518.4761719,0.0001902,3]
[338339230,1726515039557,-1940.98462855,0.0001902,3]
[338339231,1726515039567,-1000.0,0.0001902,2]
[338339232,1726515039576,-3000.0,0.0001903,2]